[Event "Croatian Team Cup Final 2022"]
[Site "Vodice"]
[Date "2022.05.21"]
[Round "5.20"]
[White "Husajina, Nikola"]
[Black "Vujakovic, Branko"]
[Result "0-1"]
[ECO "B07"]
[WhiteElo "1690"]
[BlackElo "2292"]
[Annotator "TA"]
[PlyCount "58"]
[EventDate "2022.05.18"]
[EventType "team-tourn"]
[EventCountry "CRO"]
[SourceTitle "playchess.com"]
[Source "ChessBase"]
[SourceQuality "1"]
[TimeControl "40/5400+30:1800+30"]

{[%evp 12,58,88,38,39,35,39,43,70,65,80,68,88,73,93,-118,-126,-162,-145,-477,-487,-639,-615,-621,-601,-721,-710,-810,-786,-786,-790,-752,-589,-597,-593,-595,-589,-579,-584,-595,-575,-644,-635,-791,-795,-771,-781,-818,-815]} 1. e4 {[%emt 0:00:08]} d6 {[%emt 0:00:00]} 2. d4 {[%emt 0:00:31]} Nf6 {[%emt 0:00:00]} 3. Nc3 {[%emt 0:00:13]} g6 {[%emt 0:00:08]} 4. Be2 {[%emt 0:00:28]} Bg7 {[%emt 0:04:43]} 5. h4 {[%emt 0:01:39]} Nc6 {[%emt 0:02:58]} 6. h5 {[%emt 0:02:42]} gxh5 {[%emt 0:02:20]} 7. Be3 {[%emt 0:02:02]} (7. Bg5 $16) 7... Ng4 $14 {[%emt 0:37:37] B07: Pirc Defence: Miscellaneous Systems.} 8. Rxh5 {[%emt 0:07:46]} Nxe3 {[%emt 0:00:09]} 9. fxe3 {[%emt 0:00:07]} a6 {[%emt 0:04:17] [#] White is slightly better.} 10. Bc4 $146 {[%emt 0:05:58]} ({Predecessor:} 10. Bf3 Bd7 11. Nge2 e6 12. Qd2 Qe7 13. O-O-O O-O-O 14. Rdh1 h6 15. Nd1 f5 16. exf5 exf5 {1-0 (70) Hausner,I (2321)-Spornberger,M (2273) Austria 2017}) 10... e5 {[%emt 0:16:09][%cal Be7e5,Be5d4,Bd4c3][%mdl 32]} 11. Qf3 {[%emt 0:14:40][%csl Gc4][%cal Rf3f7] [#]} O-O {[%emt 0:00:03][%cal Be8g8,Bg8h8,Bh8h7,Bh7g7][%mdl 32]} 12. Qg3 {[%emt 0:14:54] Strongly threatening Nf3.} exd4 {[%emt 0:09:06]} 13. Rg5 $2 {[%emt 0:12:27]} (13. exd4 $16 {Nge2 is the strong threat.} Qf6 14. Nge2) 13... dxc3 $17 {[%emt 0:02:06]} ({Don't play} 13... Qf6 $6 14. Nd5 Qh6 15. Rh5 $11 (15. Nxc7 Rb8 $15)) 14. Rxg7+ {[%emt 0:00:06]} Kh8 {[%emt 0:00:01]} 15. Nf3 $2 {[%emt 0:23:28][%mdl 8192] Now White is beyond hope.} (15. O-O-O $17 {is more resistant.} cxb2+ 16. Kb1) 15... Qf6 $19 {[%emt 0:03:56] Black is clearly winning.} ({Weaker is} 15... cxb2 16. Rxh7+ Kxh7 17. Qh2+ Kg6 18. Qg3+ Kh6 19. Qf4+ Kh5 20. Qh2+ Kg6 21. Qg3+ Kh7 22. Qh2+ Kg6 $11) 16. Rxh7+ {[%emt 0:05:09]} Kxh7 {[%emt 0:00:02]} 17. O-O-O {[%emt 0:00:15]} Qg6 {[%emt 0:06:48]} 18. Ng5+ {[%emt 0:01:01]} Kg7 {[%emt 0:04:20]} 19. Rh1 {[%emt 0:02:06]} cxb2+ {[%emt 0:00:23]} 20. Kb1 {[%emt 0:00:02]} Ne5 {[%emt 0:01:45]} 21. Rh7+ {[%emt 0:01:42]} Qxh7 {[%emt 0:00:19]} 22. Nxh7+ {[%emt 0:01:05]} Kxh7 {[%emt 0:00:03]} 23. Qh4+ {[%emt 0:00:49]} Kg7 {[%emt 0:00:24]} 24. Qg5+ {[%emt 0:01:36] [#]} Ng6 $1 {[%emt 0:00:21]} 25. Kxb2 {[%emt 0:00:34]} Bd7 {[%emt 0:01:10]} 26. Be2 {[%emt 0:00:23]} Rae8 {[%emt 0:00:16]} 27. Bf3 {[%emt 0:01:04]} Re5 {[%emt 0:00:08]} 28. Qg3 {[%emt 0:00:16]} Bc6 {[%emt 0:00:10]} 29. Qg4 {[%emt 0:00:37]} Rfe8 {[%emt 0:00:13] Weighted Error Value: White=0.67/Black=0.14 (very precise)} 0-1

[Event "Croatian Team Cup Final 2022"]
[Site "Vodice"]
[Date "2022.05.21"]
[Round "5.21"]
[White "Golubovic, Boris"]
[Black "Jakic, Ivan"]
[Result "1/2-1/2"]
[ECO "D02"]
[WhiteElo "2360"]
[BlackElo "2350"]
[Annotator "TA"]
[PlyCount "33"]
[EventDate "2022.05.18"]
[EventType "team-tourn"]
[EventCountry "CRO"]
[SourceTitle "playchess.com"]
[Source "ChessBase"]
[SourceQuality "1"]
[TimeControl "40/5400+30:1800+30"]

{[%evp 15,20,-6,0,-10,0,-12,9]} 1. d4 {[%emt 0:00:52]} Nf6 {[%emt 0:00:04]} 2. Nf3 {[%emt 0:00:13]} e6 {[%emt 0:00:03]} 3. Bf4 {[%emt 0:00:16]} d5 {[%emt 0:00:11]} 4. e3 {[%emt 0:00:15]} c5 {[%emt 0:00:04]} 5. c3 {[%emt 0:00:29]} Nc6 {[%emt 0:00:18]} 6. Nbd2 {[%emt 0:00:21]} Bd6 {[%emt 0:00:15]} 7. Bg3 {[%emt 0:00:34]} O-O {[%emt 0:00:15]} 8. Bd3 {[%emt 0:00:29]} b6 {[%emt 0:00:24] The position is equal.} 9. O-O {[%emt 0:00:17] D02: 1 d4 d5 2 Nf3 sidelines, including 2...Nf6 3 g3 and 2...Nf6 3 Bf4.} Bb7 {[%emt 0:00:08] 9...Bxg3 is vanishing.} 10. Qe2 {[%emt 0:02:14]} Ne7 $1 {[%emt 0:00:24][%mdl 4] [#] Not much happened in this game. now scores much better than the old 10...Bxg3.} {Predecessor:} 11. Ne5 $146 Nf5 12. Bxf5 exf5 13. Qf3 g6 14. Bh4 Be7 15. Rad1 Qc8 16. Rfe1 h6 17. Nb3 {0-1 (49) Thybo,J (2569)-Timofeev,A (2594) Chess.com INT 2021} 1/2-1/2

[Event "Croatian Team Cup Final 2022"]
[Site "Vodice"]
[Date "2022.05.22"]
[Round "6.1"]
[White "Martinovic, Sasa"]
[Black "Kozul, Zdenko"]
[Result "0-1"]
[ECO "E86"]
[WhiteElo "2552"]
[BlackElo "2621"]
[Annotator "TA"]
[PlyCount "102"]
[EventDate "2022.05.18"]
[EventType "team-tourn"]
[EventCountry "CRO"]
[SourceTitle "playchess.com"]
[Source "ChessBase"]
[SourceQuality "1"]
[TimeControl "40/5400+30:1800+30"]

{[%evp 14,102,34,31,80,83,88,95,97,66,57,59,73,59,85,66,71,71,69,62,72,62,67,49,68,60,73,82,81,74,91,85,111,79,85,79,100,29,29,0,94,85,112,107,108,82,297,297,300,275,346,302,404,347,346,331,296,311,308,296,198,0,0,0,0,0,0,0,0,0,0,-54,-27,-16,-24,-364,-310,-443,-68,-68,0,-468,-450,-633,-633,-853,-616,-848,-544,-1397,-1387]} 1. d4 {[%emt 0:00:01]} Nf6 {[%emt 0:00:08]} 2. c4 {[%emt 0:00:04]} g6 {[%emt 0:00:17]} 3. Nc3 {[%emt 0:00:04]} Bg7 {[%emt 0:00:07]} 4. e4 {[%emt 0:00:04]} d6 {[%emt 0:00:07]} 5. f3 {[%emt 0:00:04]} O-O {[%emt 0:04:15]} 6. Be3 {[%emt 0:00:04]} e5 {[%emt 0:00:51]} 7. Nge2 {[%emt 0:00:06]} c6 {[%emt 0:08:34]} (7... Nbd7 8. Qd2 a6 9. d5 h5 10. O-O-O b5 11. cxb5 axb5 12. Nxb5 Rxa2 13. Kb1 Ra8 14. Rc1 Nc5 15. Qc2 Nxd5 16. Bxc5 dxc5 17. Qxc5 {0-1 (26) Martinovic,S (2540)-Kozul,Z (2594) Zagreb 2016}) 8. Qd2 {[%emt 0:00:26]} Qc7 {[%emt 0:00:30] E86: King's Indian: Sämisch: 6...e5 7 Nge2 c6.} (8... exd4 $14 {might be stronger.} 9. Nxd4 (9. Bxd4 Nbd7 $14) 9... Nbd7) 9. d5 $16 {[%emt 0:00:21] [#]} Re8 $5 $146 {[%emt 0:03:38][%mdl 8] New and interesting.} ({Predecessor:} 9... cxd5 10. cxd5 Bd7 11. a4 a5 12. Rc1 Na6 13. Nb5 Qb8 14. Ng3 b6 15. b3 Nc5 16. Rb1 {1-0 (59) Kuljasevic,D (2560)-Kozul,Z (2595) Bol 2014}) 10. Rd1 {[%emt 0:14:07]} cxd5 {[%emt 0:07:56] White is better.} 11. Nxd5 {[%emt 0:00:41]} Nxd5 {[%emt 0:00:30]} 12. cxd5 {[%emt 0:01:23]} f5 {[%emt 0:04:40]} 13. Nc3 {[%emt 0:05:08]} a6 {[%emt 0:03:40] Inhibits Nb5.} 14. Bd3 {[%emt 0:02:08]} f4 {[%emt 0:11:53]} 15. Bf2 {[%emt 0:00:05]} Nd7 {[%emt 0:00:35]} 16. Rc1 {[%emt 0:02:08][%cal Oc3b5]} Qd8 {[%emt 0:02:03]} 17. b4 {[%emt 0:09:31]} h5 {[%emt 0:01:11]} 18. h4 {[%emt 0:06:59]} Kh7 {[%emt 0:07:54]} 19. Ke2 {[%emt 0:02:26]} Rg8 {[%emt 0:00:47]} 20. a4 {[%emt 0:01:35][%cal Ba2a4,Ba4a5][%mdl 32]} Nf6 {[%emt 0:01:55]} 21. a5 {[%emt 0:03:19]} Bd7 {[%emt 0:00:08] Inhibits Na4.} 22. Nb1 {[%emt 0:06:21]} Bh6 {[%emt 0:05:20][%cal Of6g4]} 23. Bb6 {[%emt 0:02:11]} Qe7 {[%emt 0:01:56][%cal Of6g4]} 24. Rc7 $36 {[%emt 0:02:26][%mdl 2048] White has strong initiative.} Rab8 {[%emt 0:08:46]} 25. Qc2 {[%emt 0:08:55]} (25. b5 $1 $16) 25... Rgc8 {[%emt 0:01:54]} 26. Rc1 {[%emt 0:10:04][%cal Rc7c8,Bh1c1,Bc1c8,Bc8e8,Be8e7][%mdl 32]} Ne8 {[%emt 0:05:58]} (26... Bg7 $1 $11 {remains equal.}) 27. Rxc8 {[%emt 0:00:48]} Rxc8 {[%emt 0:00:05]} 28. Qxc8 {[%emt 0:01:35]} Bxc8 {[%emt 0:00:07]} 29. Rxc8 {[%emt 0:00:03]} Qxh4 $2 {[%emt 0:00:07]} 30. Rxe8 $18 {[%emt 0:01:28]} Qh1 {[%emt 0:00:06]} 31. Re7+ {[%emt 0:02:36]} Bg7 {[%emt 0:00:13]} 32. Nd2 $1 {[%emt 0:02:42]} (32. Rxb7 Qxg2+ 33. Kd1 (33. Bf2 $2 g5 $19) 33... Qxf3+ 34. Kc2 h4 $11) 32... h4 {[%emt 0:11:06]} 33. Rxb7 {[%emt 0:00:29]} Qxg2+ {[%emt 0:00:22]} 34. Kd1 {[%emt 0:03:50]} h3 {[%emt 0:00:18]} 35. Bf1 {[%emt 0:00:14]} (35. Bxa6 $2 h2 36. Bf1 h1=Q $19) 35... Qg3 {[%emt 0:01:51] [#] White must now prevent ...h2.} 36. Bxh3 {[%emt 0:00:38][%mdl 512]} Qxh3 {[%emt 0:00:07] [#]} 37. b5 $2 {[%emt 0:00:33]} (37. Kc2 $1 $18) 37... axb5 $11 {[%emt 0:01:33]} 38. a6 {[%emt 0:00:55]} Qc8 $1 {[%emt 0:00:12]} 39. Bc7 {[%emt 0:02:13]} Qa8 {[%emt 0:01:11]} 40. Rb6 {[%emt 0:00:00]} Qa7 {[%emt 0:00:00]} 41. Rc6 {[%emt 0:24:25]} Bf8 {[%emt 0:02:30]} 42. Ba5 {[%emt 0:00:05]} ({White should try} 42. Bxd6 $11 Bxd6 43. Rxd6) 42... Kh6 {[%emt 0:01:40] ...g5 is the strong threat.} 43. Kc2 $1 {[%emt 0:00:47]} Be7 {[%emt 0:09:35]} 44. Bc3 $2 {[%emt 0:04:51][%mdl 8192] [#]} (44. Nb3 $1 $11 {and White is okay.}) 44... Kh5 $1 $19 {[%emt 0:06:43] aiming for ...g5.} 45. Nb1 {[%emt 0:02:25]} (45. Kb3 $142 g5 46. Ba5 (46. Kb4 $2 Qb8 $19)) 45... Qf2+ $2 {[%emt 0:03:02]} (45... Bh4 $19 {Strongly threatening ...Bf2.} 46. Kd1 b4 47. Bxb4 Qd4+ 48. Bd2 Qd3) 46. Nd2 $15 {[%emt 0:01:42] And now Rc7 would win.} Qa7 {[%emt 0:12:00][%mdl 8192] Against Rc7} (46... Bd8 $1 $15 47. Rxd6 b4 48. Rxd8 Qc5 49. Rh8+ Kg5) 47. Nb1 $1 $19 {[%emt 0:00:05]} ({Wrong is} 47. Bb4 $2 Qd4 48. Kb3 Bd8 $19) 47... Bh4 {[%emt 0:01:13] Black is clearly winning.} 48. Na3 {[%emt 0:03:18]} (48. Nd2 $142 Be1 49. Nb3 Qf2+ 50. Bd2 Qxf3 51. a7 Qxe4+ 52. Kb2) 48... Qe3 {[%emt 0:02:48]} 49. Rc7 {[%emt 0:04:24]} Bf2 {[%emt 0:00:39]} 50. Rh7+ {[%emt 0:00:22]} Kg5 {[%emt 0:00:05]} 51. Ba5 {[%emt 0:00:06][%cal Ra5d8]} Qxf3 {[%emt 0:00:24] Never resign too early!  Weighted Error Value: White=0.52/Black=0.45} 0-1

[Event "Croatian Team Cup Final 2022"]
[Site "Vodice"]
[Date "2022.05.22"]
[Round "6.2"]
[White "Stevic, Hrvoje"]
[Black "Livaic, Leon"]
[Result "1/2-1/2"]
[ECO "B10"]
[WhiteElo "2558"]
[BlackElo "2562"]
[Annotator "TA"]
[PlyCount "34"]
[EventDate "2022.05.18"]
[EventType "team-tourn"]
[EventCountry "CRO"]
[SourceTitle "playchess.com"]
[Source "ChessBase"]
[SourceQuality "1"]
[TimeControl "40/5400+30:1800+30"]

{[%evp 9,34,-4,3,0,19,12,9,0,0,0,0,0,6,0,0,0,10,6,17,25,23,16,15,15,27,5,7]} 1. e4 {[%emt 0:00:03]} c6 {[%emt 0:00:04]} 2. Nf3 {[%emt 0:00:58]} d5 {[%emt 0:00:05]} 3. d3 {[%emt 0:00:04]} dxe4 {[%emt 0:00:12]} 4. dxe4 {[%emt 0:00:07]} Qxd1+ {[%emt 0:00:04]} 5. Kxd1 {[%emt 0:00:07]} g6 {[%emt 0:00:10]} 6. c3 {[%emt 0:01:59] [#] B10: Caro-Kann: 2 d3 and 2 c4.} Bg4 $146 {[%emt 0:07:01]} ({Predecessor:} 6... Bg7 7. Nfd2 f5 8. f3 Nf6 9. exf5 Bxf5 10. Nc4 Na6 11. Ne3 O-O-O+ 12. Nd2 Nc5 13. Nxf5 gxf5 {½-½ (68) Andreikin,D (2726)-Vachier Lagrave,M (2784) Chess.com INT 2020}) 7. Be2 {[%emt 0:00:56]} Bh6 {[%emt 0:06:54]} 8. Nfd2 {[%emt 0:07:18]} Bxe2+ {[%emt 0:00:47]} 9. Kxe2 {[%emt 0:00:07]} Nf6 {[%emt 0:05:08]} 10. f3 {[%emt 0:00:20]} Nbd7 {[%emt 0:01:14]} 11. Nc4 {[%emt 0:00:39]} Bxc1 {[%emt 0:00:03]} 12. Rxc1 {[%emt 0:00:05]} Nb6 {[%emt 0:18:19]} 13. Nbd2 {[%emt 0:18:19][%cal Bb1d2,Bd2c4,Bc4e5][%mdl 32]} Nxc4 {[%emt 0:01:48]} 14. Nxc4 {[%emt 0:00:05]} O-O-O {[%emt 0:01:05]} 15. Ne5 {[%emt 0:03:08]} Rhf8 {[%emt 0:00:12]} 16. Rd1 {[%emt 0:00:07]} Nd7 {[%emt 0:00:14]} 17. Nxd7 {[%emt 0:00:16]} Rxd7 {[%emt 0:00:04] An uneventful encounter.  Weighted Error Value: White=0.06 (flawless) /Black=0.04 (flawless)} 1/2-1/2

[Event "Croatian Team Cup Final 2022"]
[Site "Vodice"]
[Date "2022.05.22"]
[Round "6.3"]
[White "Cvitan, Ognjen"]
[Black "Palac, Mladen"]
[Result "1/2-1/2"]
[ECO "D38"]
[WhiteElo "2454"]
[BlackElo "2505"]
[Annotator "TA"]
[PlyCount "52"]
[EventDate "2022.05.18"]
[EventType "team-tourn"]
[EventCountry "CRO"]
[SourceTitle "playchess.com"]
[Source "ChessBase"]
[SourceQuality "1"]
[TimeControl "40/5400+30:1800+30"]

{[%evp 14,35,10,17,18,14,14,15,11,0,13,15,8,0,0,11,9,16,10,22,13,14,18,13]} 1. d4 {[%emt 0:02:21]} Nf6 {[%emt 0:00:07]} 2. c4 {[%emt 0:00:39]} e6 {[%emt 0:00:07]} 3. Nf3 {[%emt 0:00:57]} d5 {[%emt 0:01:34]} 4. Nc3 {[%emt 0:02:42]} Bb4 {[%emt 0:02:47]} 5. Bg5 {[%emt 0:05:16]} h6 {[%emt 0:04:17]} 6. Bxf6 {[%emt 0:00:30]} Qxf6 {[%emt 0:00:02]} 7. Qa4+ {[%emt 0:02:13]} Nc6 {[%emt 0:00:02]} 8. e3 {[%emt 0:00:31] The position is equal.} O-O {[%emt 0:02:00] D38: Queen's Gambit Declined: Ragozin Defence (4 Nf3 Bb4).} 9. Rc1 {[%emt 0:06:36]} Rd8 {[%emt 0:07:08]} 10. Be2 {[%emt 0:07:44]} dxc4 {[%emt 0:06:06]} 11. Bxc4 {[%emt 0:00:14]} Bd7 {[%emt 0:00:47]} 12. Qc2 {[%emt 0:01:23]} Na5 {[%emt 0:03:17]} 13. Be2 {[%emt 0:01:28]} c5 $1 {[%emt 0:00:14]} 14. a3 {[%emt 0:03:24]} cxd4 {[%emt 0:00:09]} 15. axb4 {[%emt 0:00:57] [#] aiming for Ne4.} dxc3 {[%emt 0:00:05]} 16. bxc3 {[%emt 0:01:37]} ({Don't blunder} 16. bxa5 $2 cxb2 17. Rb1 Rac8 18. Qxb2 Qxb2 19. Rxb2 Rc1+ 20. Bd1 Ba4 $19) 16... Nc6 {[%emt 0:00:04]} 17. O-O {[%emt 0:00:22]} a6 {[%emt 0:00:23]} 18. Rfd1 {[%emt 0:00:51] [#] A balanced but interesting game.  Weighted Error Value: White=0.01 (flawless) /Black=0.00 (flawless)} {Predecessor:} e5 $146 19. Nd2 Bf5 20. e4 Be6 21. Nc4 Rac8 22. Rxd8+ Qxd8 23. Qb2 Qc7 24. Rc2 a5 25. bxa5 Nxa5 26. Nxa5 Qxa5 {½-½ (34) Seo,J (2469)-Cvitan,O (2470) Struga 2021} 1/2-1/2

[Event "Croatian Team Cup Final 2022"]
[Site "Vodice"]
[Date "2022.05.22"]
[Round "6.4"]
[White "Zelcic, Robert"]
[Black "Rogic, Davor"]
[Result "0-1"]
[ECO "C85"]
[WhiteElo "2497"]
[BlackElo "2457"]
[Annotator "TA"]
[PlyCount "104"]
[EventDate "2022.05.18"]
[EventType "team-tourn"]
[EventCountry "CRO"]
[SourceTitle "playchess.com"]
[Source "ChessBase"]
[SourceQuality "1"]
[TimeControl "40/5400+30:1800+30"]

{[%evp 18,104,13,7,0,0,0,3,14,-12,0,-28,-20,-43,-40,-88,-78,-88,-82,-88,-84,-76,-78,-104,-85,-84,-85,-83,-78,-114,-100,-95,-79,-93,-87,-154,-162,-160,-120,-117,-106,-102,-111,-119,-114,-181,-186,-416,-356,-350,-351,-372,-324,-346,-335,-543,-224,-233,-162,-228,-221,-295,-291,-280,-280,-312,-286,-270,-270,-299,-293,-288,-285,-270,-261,-272,-260,-256,-230,-506,-465,-470,-427,-489,-470,-853,-838,-1098,-827]} 1. e4 {[%emt 0:00:03]} e5 {[%emt 0:00:17]} 2. Nf3 {[%emt 0:00:06]} Nc6 {[%emt 0:01:06]} 3. Bb5 {[%emt 0:00:07]} a6 {[%emt 0:00:22]} 4. Ba4 {[%emt 0:00:05]} Nf6 {[%emt 0:00:25][%cal Bg8f6,Bf6d7,Bd7c5,Bc5e6][%mdl 32]} 5. O-O {[%emt 0:01:31]} Be7 {[%emt 0:00:16]} 6. Bxc6 {[%emt 0:00:05]} dxc6 {[%emt 0:00:35]} 7. Nc3 {[%emt 0:00:03]} Nd7 {[%emt 0:01:18]} 8. d4 {[%emt 0:00:12]} exd4 {[%emt 0:01:20]} 9. Qxd4 {[%emt 0:00:03]} O-O {[%emt 0:01:49]} 10. Bf4 {[%emt 0:00:05]} Nc5 {[%emt 0:04:52] C85: Closed Ruy Lopez: Deferred Exchange Variation.} 11. Qe3 {[%emt 0:00:05]} Ne6 {[%emt 0:05:46]} 12. Rad1 {[%emt 0:01:25]} Qe8 {[%emt 0:00:43] [#] The position is equal.} 13. e5 $146 {[%emt 0:00:05]} ({Predecessor:} 13. Bg3 Bc5 14. Qe2 Bb4 15. Nb1 f6 16. Bxc7 Nxc7 17. Qc4+ Qf7 18. Qxb4 a5 19. Qb6 {1-0 (57) Zhang,Z (2637)-Jumabayev,R (2604) Baku 2016}) 13... b6 {[%emt 0:13:53]} 14. Ne4 {[%emt 0:04:47]} Bb7 {[%emt 0:07:20]} 15. Bg3 {[%emt 0:05:25]} c5 {[%emt 0:02:48]} (15... Rd8 {keeps more tension.} 16. Nfg5 c5 17. Nxe6 fxe6 18. b3 Qg6) 16. Nc3 {[%emt 0:14:12] Inhibits Qa4.} (16. Nfg5 $15) 16... Rd8 $17 {[%emt 0:04:48]} 17. Rxd8 {[%emt 0:05:39]} Qxd8 {[%emt 0:00:32]} 18. Rd1 {[%emt 0:00:05]} Qa8 {[%emt 0:03:38]} 19. Ne1 {[%emt 0:00:56]} Rd8 {[%emt 0:02:50]} 20. Rd2 {[%emt 0:17:59]} c4 {[%emt 0:03:06]} 21. Ne2 {[%emt 0:00:51]} Bc5 {[%emt 0:01:25]} 22. Qc3 {[%emt 0:01:52]} b5 {[%emt 0:01:02][%cal Bb6b5,Bb5b4][%mdl 32] Black is more active.} 23. Bh4 {[%emt 0:00:36] Inhibits Ng5.} Rd5 {[%emt 0:07:35]} 24. Rxd5 {[%emt 0:02:20]} Bxd5 {[%emt 0:00:06][%cal Bb7d5,Bd5a2,Ba2c4][%mdl 32]} 25. Qd2 {[%emt 0:00:17]} b4 {[%emt 0:06:33]} 26. Kf1 {[%emt 0:07:21]} ({White should play} 26. Bg5) 26... a5 {[%emt 0:01:12]} 27. f3 {[%emt 0:03:34]} c3 {[%emt 0:06:30]} 28. bxc3 {[%emt 0:00:39]} Bxa2 {[%emt 0:00:34] [#] White must now prevent ...Bc4. A strong pair of Bishops.} 29. cxb4 {[%emt 0:00:26]} axb4 {[%emt 0:02:24]} (29... Bxb4 30. c3 Bc4 31. cxb4 $14) 30. Nd3 {[%emt 0:00:30]} Qd5 {[%emt 0:02:02]} 31. Be1 {[%emt 0:13:53]} (31. Bf2 $17 {was called for.} Bf8 32. Be3) 31... Bc4 $19 {[%emt 0:04:11] ...b3 is the strong threat.} 32. Bf2 $2 {[%emt 0:08:42]} (32. Nxc5 {keeps fighting.} Qxc5 33. Bg3) 32... Bxf2 {[%emt 0:05:58]} 33. Kxf2 {[%emt 0:00:01]} b3 {[%emt 0:01:25]} 34. Qe3 {[%emt 0:03:36]} Bxd3 {[%emt 0:01:59]} 35. Qxd3 {[%emt 0:02:09][%mdl 4096] Endgame KQN-KQN} Qc5+ {[%emt 0:00:23]} (35... Qxe5 36. Qxb3 Qxh2 37. Qb8+ Nf8 38. Ng3 $15) 36. Ke1 $2 {[%emt 0:00:28]} (36. Kf1 bxc2 37. Nc1) 36... bxc2 {[%emt 0:03:32]} (36... b2 $142 37. Qb3 Qa5+ 38. Nc3 Qxe5+ 39. Kf2 Qc5+ 40. Kf1 {[#]} Qxc3 $3 {[%mdl 512]} 41. Qxc3 b1=Q+ 42. Kf2 g5) 37. Kd2 {[%emt 0:00:57]} Qxe5 {[%emt 0:00:37]} 38. f4 {[%emt 0:00:42]} (38. g3 $142) 38... Qc5 {[%emt 0:01:59]} 39. Qxc2 {[%emt 0:00:25]} Qd5+ {[%emt 0:00:32]} 40. Ke3 {[%emt 0:00:00]} Qxg2 {[%emt 0:00:00]} 41. f5 {[%emt 0:04:26]} Qg5+ {[%emt 0:04:16]} ({Inferior is} 41... Qxh2 42. fxe6 Qe5+ 43. Kf3 $15 (43. Qe4 Qxe6 44. Qxe6 fxe6 $11)) 42. Kf3 {[%emt 0:00:41]} Nf8 {[%emt 0:02:38]} ({Wrong is} 42... Qh5+ $2 43. Kg3 Qg5+ 44. Kf3 $19) 43. Ng3 {[%emt 0:00:06]} Qe7 {[%emt 0:02:09]} 44. Kg2 {[%emt 0:05:10]} Qe5 {[%emt 0:00:57]} 45. Qc6 {[%emt 0:00:41]} h6 {[%emt 0:01:11][%cal Bh7h6,Bh6h5][%mdl 32]} 46. h4 {[%emt 0:00:46]} Qf4 {[%emt 0:02:44]} 47. Kh3 {[%emt 0:01:12]} h5 {[%emt 0:03:03] And now ...Qg4+ would win.} 48. Qh1 $2 {[%emt 0:09:52]} (48. Qe4 Qxe4 49. Nxe4) 48... Qg4+ {[%emt 0:02:06] Black is clearly winning.} 49. Kg2 {[%emt 0:00:01]} c5 {[%emt 0:01:10][%cal Bc7c5,Bc5c4][%mdl 32]} 50. Qc1 {[%emt 0:01:17]} c4 {[%emt 0:00:39] Hoping for ...Nh7.} 51. f6 {[%emt 0:01:19]} (51. Qe3 $142) 51... Ng6 {[%emt 0:01:34]} 52. Qe3 {[%emt 0:01:44]} gxf6 {[%emt 0:00:50] Weighted Error Value: White=0.46/Black=0.17 (very precise)} 0-1

[Event "Croatian Team Cup Final 2022"]
[Site "Vodice"]
[Date "2022.05.22"]
[Round "6.5"]
[White "Skuhala, Jernej"]
[Black "Doric, Darko"]
[Result "1/2-1/2"]
[ECO "B15"]
[WhiteElo "2378"]
[BlackElo "2483"]
[Annotator "TA"]
[PlyCount "58"]
[EventDate "2022.05.18"]
[EventType "team-tourn"]
[EventCountry "CRO"]
[SourceTitle "playchess.com"]
[Source "ChessBase"]
[SourceQuality "1"]
[TimeControl "40/5400+30:1800+30"]

{[%evp 14,58,16,30,20,4,44,26,15,15,26,5,29,-34,-28,-40,-40,-25,-37,-41,0,-29,17,-2,0,0,0,0,0,0,0,0,6,0,0,0,0,0,0,0,0,0,0,0,0,0,0]} 1. e4 {[%emt 0:00:03]} c6 {[%emt 0:00:29]} 2. d4 {[%emt 0:00:02]} d5 {[%emt 0:00:11]} 3. Nc3 {[%emt 0:00:04]} dxe4 {[%emt 0:00:32]} 4. Nxe4 {[%emt 0:00:03]} Nf6 {[%emt 0:00:07]} 5. Nxf6+ {[%emt 0:00:42]} exf6 {[%emt 0:00:06]} 6. c3 {[%emt 0:00:12]} Bd6 {[%emt 0:00:10]} 7. Bd3 {[%emt 0:00:12]} O-O {[%emt 0:00:46]} 8. Qc2 {[%emt 0:00:08] Active counter play!} Re8+ {[%emt 0:00:04] B15: Caro-Kann: 3 Nc3: 3...g6 and 3...dxe4 4 Nxe4 Nf6 5 Nxf6+ exf6.} 9. Ne2 {[%emt 0:00:13]} h5 {[%emt 0:00:05]} (9... f5 $5) 10. Be3 {[%emt 0:05:47]} (10. O-O {feels hotter.} Na6 11. Re1 Nc7 12. Bd2) 10... Nd7 {[%emt 0:02:40] White has an edge.} 11. O-O-O {[%emt 0:01:29]} Nf8 {[%emt 0:00:06]} 12. Kb1 {[%emt 0:09:08]} Be6 {[%emt 0:00:37]} 13. Bf4 {[%emt 0:15:43]} (13. c4 $11) 13... b5 {[%emt 0:04:35] [#]} 14. Rhe1 $146 {[%emt 0:12:33]} ({Predecessor:} 14. f3 Ng6 15. Bxd6 Qxd6 16. h3 Re7 17. Qd2 Rae8 18. Rde1 Bc4 19. Nc1 Qg3 20. Rxe7 Rxe7 21. Bxg6 fxg6 {½-½ (41) Hernandez Guerrero,G (2537)-Henriquez Villagra,C (2560) Rio Grande 2019}) 14... Bd5 {[%emt 0:13:29] Prevents Be4.} 15. Bxd6 {[%emt 0:02:10]} Qxd6 {[%emt 0:04:01]} 16. g3 {[%emt 0:01:57]} Qe6 {[%emt 0:20:20]} 17. b3 {[%emt 0:01:46]} a5 {[%emt 0:01:00]} (17... Bf3 {was preferrable.}) 18. Qd2 {[%emt 0:02:40] The position is equal.} a4 {[%emt 0:01:32]} 19. Nf4 {[%emt 0:07:36][%csl LRe6,LRh5]} Qd6 {[%emt 0:00:43] Hoping for ...Rxe1.} 20. Nxd5 {[%emt 0:00:26]} Qxd5 {[%emt 0:00:27]} 21. b4 {[%emt 0:00:08]} g6 {[%emt 0:07:52]} 22. Re3 {[%emt 0:07:20]} f5 {[%emt 0:09:42]} 23. Rde1 {[%emt 0:02:25]} Rxe3 {[%emt 0:00:18]} 24. Qxe3 {[%emt 0:00:07]} Nd7 {[%emt 0:04:46]} 25. Be2 {[%emt 0:02:12]} Nf6 {[%emt 0:04:15] [#] And now ...Re8 would win.} 26. Bf3 {[%emt 0:01:52]} Qc4 {[%emt 0:00:27] Threatens to win with ...Re8.} 27. Be2 {[%emt 0:00:47]} Qd5 {[%emt 0:01:32] White must now prevent ...Re8.} 28. Bf3 {[%emt 0:00:10]} Qc4 {[%emt 0:00:45] Strongly threatening ...Re8.} 29. Be2 {[%emt 0:00:18]} Qd5 $1 {[%emt 0:00:03] Weighted Error Value: White=0.10 (very precise) /Black=0.07 (flawless)} 1/2-1/2